fUST/lending_fUST_20241113
["ID","MTS","AMOUNT","RATE_DAILY","PERIOD"]
[342090391,1731429034251,-500.0,0.00021917,2]
[342090392,1731429034260,-2336.0,0.00021917,2]
[342090394,1731429034270,-500.0,0.00021917,2]
[342090396,1731429034279,-500.0,0.00021917,2]
[342090397,1731429034288,-728.99,0.00021917,2]
[342090399,1731429034298,-1211.92,0.00021917,2]
[342090401,1731429034308,-500.0,0.00021917,2]
[342090403,1731429034318,-500.0,0.00021917,2]
[342090404,1731429034328,-930.01,0.00021917,2]
[342090406,1731429034338,-500.0,0.00021917,2]
[342090408,1731429034348,-1697.53,0.00021917,2]
[342090409,1731429034358,-500.0,0.00021917,2]
[342090411,1731429034368,-500.0,0.00021917,2]
[342090413,1731429034378,-733.81,0.00021917,2]
[342090414,1731429034388,-2569.56,0.00021917,2]
[342090416,1731429034398,-1612.16,0.00021917,2]
[342090418,1731429034407,-500.0,0.00021917,2]
[342090419,1731429034419,-331.81604586,0.00021917,2]
[342090421,1731429034428,-500.0,0.00021917,2]
[342090423,1731429034442,-500.0,0.00021917,2]
[342090424,1731429034451,-500.0,0.00021917,2]
[342090426,1731429034460,-500.0,0.00021917,2]
[342090428,1731429034470,-500.0,0.00021917,2]
[342090429,1731429034480,-500.0,0.00021917,2]
[342090431,1731429034489,-743.43,0.00021917,2]
[342090433,1731429034503,-500.0,0.00021917,2]
[342090434,1731429034512,-500.0,0.00021917,2]
[342090436,1731429034521,-500.0,0.00021917,2]
[342090438,1731429034531,-500.0,0.00021917,2]
[342090440,1731429034542,-500.0,0.00021917,2]
[342090441,1731429034552,-500.0,0.00021917,2]
[342090443,1731429034562,-500.0,0.00021917,2]
[342090445,1731429034571,-547.29663356,0.00021917,2]
[342090446,1731429034581,-500.0,0.00021917,2]
[342090448,1731429034592,-500.0,0.00021917,2]
[342090450,1731429034602,-758.27,0.00021917,2]
[342090452,1731429034612,-500.0,0.00021917,2]
[342090453,1731429034623,-3191.38,0.00021917,2]
[342090455,1731429034632,-500.0,0.00021917,2]
[342090457,1731429034642,-1021.95,0.00021917,2]
[342090458,1731429034651,-500.0,0.00021917,2]
[342090460,1731429034660,-500.0,0.00021917,2]
[342090462,1731429034670,-500.0,0.00021917,2]
[342090464,1731429034683,-500.0,0.00021917,2]
[342090466,1731429034692,-3700.61,0.00021917,2]
[342090468,1731429034702,-500.0,0.00021917,2]
[342090470,1731429034713,-500.0,0.00021917,2]
[342090471,1731429034725,-500.0,0.00021917,2]
[342090473,1731429034735,-500.0,0.00021917,2]
[342090475,1731429034745,-500.0,0.00021917,2]
[342090477,1731429034755,-473.88296568,0.00021917,2]
[342090479,1731429034765,-500.0,0.00021917,2]
[342090481,1731429034775,-500.0,0.00021917,2]
[342090483,1731429034785,-500.0,0.00021917,2]
[342090484,1731429034795,-500.0,0.00021917,2]
[342090485,1731429034804,-711.18,0.00021917,2]
[342090486,1731429034814,-500.0,0.00021917,2]
[342090487,1731429034823,-500.0,0.00021917,2]
[342090488,1731429034832,-596.61,0.00021917,2]
[342090489,1731429034920,-500.0,0.00021917,2]
[342090490,1731429034930,-500.0,0.00021917,2]
[342090491,1731429034943,-500.0,0.00021917,2]
[342090492,1731429034952,-500.0,0.00021917,2]
[342090493,1731429034962,-500.0,0.00021917,2]
[342090494,1731429034972,-167.613952,0.00021918,2]
[342090495,1731429034981,-500.0,0.00021918,2]
[342090496,1731429034991,-484.44779556,0.00021918,2]
[342090497,1731429035000,-159.0,0.00022,2]
[342090498,1731429035009,-246.0,0.00022,2]
[342090499,1731429035018,-8864.32339442,0.00022,30]
[342090500,1731429035028,-8078.35158196,0.00022011,2]
[342090501,1731429035038,-327.85128954,0.0002209,2]
[342090502,1731429035047,-329.39991623,0.0002209,2]
[342090503,1731429035057,-500.0,0.0002209,2]
[342090504,1731429035066,-337.41401653,0.0002209,2]
[342090505,1731429035075,-293.94774377,0.0002209,2]
[342090506,1731429035085,-500.0,0.0002209,2]
[342090507,1731429035094,-500.0,0.0002209,2]
[342090508,1731429035103,-500.0,0.0002209,2]
[342090509,1731429035112,-325.73564165,0.0002209,2]
[342090510,1731429035121,-1259.12,0.0002209,2]
[342090511,1731429035130,-6000.0,0.00022091,2]
[342090512,1731429035140,-626.439321,0.00022135,2]
[342090513,1731429035150,-500.0,0.00022173,2]
[342090514,1731429035159,-500.0,0.00022173,2]
[342090515,1731429035168,-500.0,0.00022173,2]
[342090516,1731429035177,-500.0,0.00022173,2]
[342090517,1731429035191,-500.0,0.00022173,2]
[342090518,1731429035200,-500.0,0.00022173,2]
[342090519,1731429035210,-500.0,0.00022173,2]
[342090520,1731429035219,-500.0,0.00022173,2]
[342090521,1731429035229,-500.0,0.00022173,2]
[342090522,1731429035238,-1259.12,0.0002219,2]
[342090523,1731429035248,-1259.12,0.0002219,2]
[342090524,1731429035258,-1259.12,0.0002219,2]
[342090525,1731429035268,-1259.12,0.0002219,2]
[342090526,1731429035277,-1259.12,0.0002219,2]
[342090527,1731429035287,-500.0,0.00022191,2]
[342090528,1731429035297,-500.0,0.00022191,2]
[342090529,1731429035306,-500.0,0.00022191,2]
[342090530,1731429035318,-500.0,0.00022191,2]
[342090531,1731429035328,-500.0,0.00022191,2]
[342090532,1731429035338,-500.0,0.00022191,2]
[342090533,1731429035348,-500.0,0.00022191,2]
[342090534,1731429035359,-155.1171594,0.00022191,2]
[342090535,1731429035369,-500.0,0.00022191,2]
[342090536,1731429035379,-167.24414625,0.00022191,2]
[342090537,1731429035389,-500.0,0.00022191,2]
[342090538,1731429035399,-500.0,0.00022191,2]
[342090539,1731429035408,-500.0,0.00022191,2]
[342090540,1731429035418,-406.74958775,0.00022191,2]
[342090541,1731429035427,-500.0,0.00022191,2]
[342090542,1731429035441,-500.0,0.00022191,2]
[342090543,1731429035451,-500.0,0.00022191,2]
[342090544,1731429035460,-500.0,0.00022191,2]
[342090545,1731429035470,-500.0,0.00022191,2]
[342090546,1731429035479,-500.0,0.00022191,2]
[342090547,1731429035489,-500.0,0.00022191,2]
[342090548,1731429035499,-500.0,0.00022191,2]
[342090549,1731429035513,-320.81998323,0.00022191,2]
[342090550,1731429035523,-500.0,0.00022191,2]
[342090551,1731429035533,-500.0,0.00022191,2]
[342090552,1731429035543,-500.0,0.00022191,2]
[342090553,1731429035555,-500.0,0.00022191,2]
[342090554,1731429035565,-508.85220928,0.00022191,2]
[342090555,1731429035575,-500.0,0.00022191,2]
[342090556,1731429035586,-504.75511089,0.00022191,2]
[342090557,1731429035595,-846.57263635,0.00022191,5]
[342090558,1731429035605,-500.0,0.00022191,2]
[342090559,1731429035614,-596.84,0.00022191,2]
[342090560,1731429035624,-500.0,0.00022191,2]
[342090561,1731429035634,-500.0,0.00022191,2]
[342090562,1731429035645,-545.7655946,0.00022191,2]
[342090563,1731429035655,-500.0,0.00022191,2]
[342090564,1731429035665,-500.0,0.00022191,2]
[342090565,1731429035675,-506.93953131,0.00022191,2]
[342090566,1731429035686,-500.0,0.00022191,2]
[342090567,1731429035695,-406.36821288,0.00022191,2]
[342090568,1731429035704,-500.0,0.00022191,2]
[342090569,1731429035715,-500.0,0.00022191,2]
[342090570,1731429035724,-500.0,0.00022191,2]
[342090571,1731429035733,-509.25649232,0.00022191,2]
[342090572,1731429035743,-519.45323124,0.00022191,2]
[342090573,1731429035753,-500.0,0.00022191,2]
[342090574,1731429035763,-500.0,0.00022191,2]
[342090575,1731429035773,-500.0,0.00022191,2]
[342090576,1731429035782,-500.0,0.00022191,2]
[342090577,1731429035792,-500.0,0.00022191,2]
[342090578,1731429035809,-500.0,0.00022191,2]
[342090579,1731429035823,-500.0,0.00022191,2]
[342090580,1731429035837,-500.0,0.00022191,2]
[342090581,1731429035850,-500.0,0.00022191,2]
[342090582,1731429035862,-500.0,0.00022191,2]
[342090583,1731429035875,-500.0,0.00022191,2]
[342090584,1731429035889,-500.0,0.00022191,2]
[342090585,1731429035902,-500.0,0.00022191,2]
[342090586,1731429035916,-515.47809113,0.00022191,2]
[342090587,1731429035929,-565.45,0.00022191,2]
[342090588,1731429035947,-455.70118646,0.00022191,2]
[342090590,1731429035962,-500.0,0.00022191,2]
[342090591,1731429035974,-500.0,0.00022191,2]
[342090592,1731429035986,-500.0,0.00022191,2]
[342090593,1731429036000,-500.0,0.00022191,2]
[342090594,1731429036013,-9728.04,0.00022191,2]
[342090595,1731429036025,-523.91799501,0.00022191,2]
[342090596,1731429036037,-2247.58,0.00022191,2]
[342090597,1731429036047,-517.76345194,0.00022191,2]
[342090598,1731429036062,-500.0,0.00022191,2]
[342090599,1731429036074,-500.0,0.00022191,2]
[342090600,1731429036088,-898.34,0.00022191,2]
[342090601,1731429036101,-500.0,0.00022191,2]
[342090602,1731429036114,-982.1,0.00022191,2]
[342090603,1731429036129,-191.33634769,0.00022191,2]
[342090604,1731429036142,-500.0,0.00022191,2]
[342090605,1731429036156,-500.0,0.00022191,2]
[342090606,1731429036167,-500.0,0.00022191,2]
[342090607,1731429036176,-536.53656817,0.00022191,2]
[342090608,1731429036190,-500.0,0.00022191,2]
[342090609,1731429036201,-500.0,0.00022191,2]
[342090610,1731429036214,-500.0,0.00022191,2]
[342090611,1731429036230,-1453.04,0.00022191,2]
[342090612,1731429036242,-500.0,0.00022191,2]
[342090613,1731429036253,-500.0,0.00022191,2]
[342090614,1731429036266,-500.0,0.00022191,2]
[342090615,1731429036279,-1008.36,0.00022191,2]
[342090616,1731429036291,-500.0,0.00022191,2]
[342090617,1731429036302,-500.0,0.00022191,2]
[342090618,1731429036313,-500.0,0.00022191,2]
[342090619,1731429036324,-500.0,0.00022191,2]
[342090620,1731429036335,-500.0,0.00022191,2]
[342090621,1731429036347,-500.0,0.00022191,2]
[342090622,1731429036358,-500.0,0.00022191,2]
[342090623,1731429036369,-503.74565078,0.00022191,2]
[342090624,1731429036380,-500.0,0.00022191,2]
[342090625,1731429036392,-2336.0,0.00022191,2]
[342090626,1731429036403,-500.0,0.00022191,2]
[342090627,1731429036415,-500.0,0.00022191,2]
[342090628,1731429036426,-728.99,0.00022191,2]
[342090629,1731429036440,-1211.92,0.00022191,2]
[342090630,1731429036451,-500.0,0.00022191,2]
[342090631,1731429036463,-500.0,0.00022191,2]
[342090632,1731429036475,-930.01,0.00022191,2]
[342090633,1731429036486,-500.0,0.00022191,2]
[342090634,1731429036502,-1697.53,0.00022191,2]
[342090635,1731429036513,-500.0,0.00022191,2]
[342090636,1731429036525,-500.0,0.00022191,2]
[342090637,1731429036537,-733.81,0.00022191,2]
[342090638,1731429036550,-2569.56,0.00022191,2]
[342090639,1731429036562,-1612.16,0.00022191,2]
[342090640,1731429036576,-500.0,0.00022191,2]
[342090641,1731429036587,-500.0,0.00022191,2]
[342090642,1731429036598,-500.0,0.00022191,2]
[342090643,1731429036609,-500.0,0.00022191,2]
[342090644,1731429036620,-500.0,0.00022191,2]
[342090645,1731429036631,-500.0,0.00022191,2]
[342090646,1731429036642,-743.43,0.00022191,2]
[342090647,1731429036654,-500.0,0.00022191,2]
[342090648,1731429036667,-500.0,0.00022191,2]
[342090649,1731429036678,-500.0,0.00022191,2]
[342090650,1731429036697,-500.0,0.00022191,2]
[342090651,1731429036709,-500.0,0.00022191,2]
[342090652,1731429036721,-500.0,0.00022191,2]
[342090653,1731429036733,-232.48976611,0.00022191,2]
[342090654,1731429036744,-500.0,0.00022191,2]
[342090655,1731429036757,-500.0,0.00022191,2]
[342090656,1731429036769,-758.27,0.00022191,2]
[342090657,1731429036781,-500.0,0.00022191,2]
[342090658,1731429036793,-3191.38,0.00022191,2]
[342090659,1731429036804,-500.0,0.00022191,2]
[342090660,1731429036816,-1021.95,0.00022191,2]
[342090661,1731429036827,-500.0,0.00022191,2]
[342090662,1731429036838,-500.0,0.00022191,2]
[342090663,1731429036849,-3700.61,0.00022191,2]
[342090664,1731429036860,-518.82932555,0.00022191,2]
[342090665,1731429036872,-500.0,0.00022191,2]
[342090666,1731429036883,-500.0,0.00022191,2]
[342090668,1731429037008,-500.0,0.00022191,2]
[342090669,1731429037021,-500.0,0.00022191,2]
[342090670,1731429037031,-500.0,0.00022191,2]
[342090671,1731429037041,-500.0,0.00022191,2]
[342090672,1731429037051,-711.18,0.00022191,2]
[342090673,1731429037060,-500.0,0.00022191,2]
[342090674,1731429037069,-596.61,0.00022191,2]
[342090675,1731429037078,-500.0,0.00022191,2]
[342090676,1731429037088,-237.55616925,0.00022191,2]
[342090677,1731429037097,-246.0,0.00022192,2]
[342090678,1731429037107,-675.38966901,0.00022228,2]
[342090679,1731429037117,-1259.12,0.00022405,2]
[342090680,1731429037126,-150.0,0.0002244,2]
[342090681,1731429037136,-1121.0,0.0002244,2]
[342090682,1731429037146,-530.0,0.0002244,2]
[342090683,1731429037155,-2392.0,0.0002244,2]
[342090684,1731429037164,-1259.12,0.00022464,2]
[342090685,1731429037175,-1259.12,0.00022464,2]
[342090686,1731429037188,-1259.12,0.00022464,2]
[342090687,1731429037198,-1259.12,0.00022464,2]
[342090688,1731429037208,-8078.35158196,0.00022464,2]
[342090689,1731429037217,-151.0,0.00022465,7]
[342090690,1731429037228,-219.38425,0.00022465,7]
[342090691,1731429037237,-151.0,0.00022465,7]
[342090692,1731429037247,-151.0,0.00022465,7]
[342090693,1731429037256,-151.0,0.00022465,7]
[342090694,1731429037265,-616.78,0.00022465,2]
[342090695,1731429037274,-500.0,0.00022465,2]
[342090696,1731429037283,-180.31954564,0.00022465,2]
[342090697,1731429037292,-500.0,0.00022465,2]
[342090698,1731429037301,-500.0,0.00022465,2]
[342090699,1731429037311,-500.0,0.00022465,2]
[342090700,1731429037320,-500.0,0.00022465,2]
[342090701,1731429037329,-500.0,0.00022465,2]
[342090702,1731429037339,-500.0,0.00022465,2]
[342090703,1731429037349,-500.0,0.00022465,2]
[342090704,1731429037358,-500.0,0.00022465,2]
[342090705,1731429037367,-500.0,0.00022465,2]
[342090706,1731429037379,-500.0,0.00022465,2]
[342090707,1731429037388,-500.0,0.00022465,2]
[342090708,1731429037396,-500.0,0.00022465,2]
[342090709,1731429037406,-500.0,0.00022465,2]
[342090710,1731429037415,-500.0,0.00022465,2]
[342090711,1731429037424,-596.84,0.00022465,2]
[342090712,1731429037437,-500.0,0.00022465,2]
[342090713,1731429037446,-154.79619843,0.00022465,2]
[342090714,1731429037454,-500.0,0.00022465,2]
[342090715,1731429037463,-500.0,0.00022465,2]
[342090716,1731429037473,-510.64104067,0.00022465,2]
[342090717,1731429037482,-513.71282495,0.00022465,2]
[342090718,1731429037491,-500.0,0.00022465,2]
[342090719,1731429037500,-500.0,0.00022465,2]
[342090721,1731429037514,-500.0,0.00022465,2]
[342090723,1731429037524,-500.0,0.00022465,2]
[342090725,1731429037534,-500.0,0.00022465,2]
[342090727,1731429037543,-500.0,0.00022465,2]
[342090729,1731429037555,-500.0,0.00022465,2]
[342090731,1731429037564,-500.0,0.00022465,2]
[342090733,1731429037573,-316.77530114,0.00022465,2]
[342090734,1731429037583,-500.0,0.00022465,2]
[342090736,1731429037592,-500.0,0.00022465,2]
[342090738,1731429037602,-500.0,0.00022465,2]
[342090740,1731429037611,-500.0,0.00022465,2]
[342090742,1731429037621,-9728.04,0.00022465,2]
[342090743,1731429037630,-2247.58,0.00022465,2]
[342090744,1731429037639,-519.66508409,0.00022465,2]
[342090745,1731429037649,-500.0,0.00022465,2]
[342090746,1731429037658,-898.34,0.00022465,2]
[342090747,1731429037668,-500.0,0.00022465,2]
[342090748,1731429037678,-982.1,0.00022465,2]
[342090749,1731429037693,-500.0,0.00022465,2]
[342090750,1731429037703,-500.0,0.00022465,2]
[342090751,1731429037712,-507.6038534,0.00022465,2]
[342090752,1731429037722,-500.0,0.00022465,2]
[342090753,1731429037731,-500.0,0.00022465,2]
[342090754,1731429037741,-1453.04,0.00022465,2]
[342090755,1731429037750,-500.0,0.00022465,2]
[342090756,1731429037761,-338.90891541,0.00022465,2]
[342090757,1731429037771,-500.0,0.00022465,2]
[342090758,1731429037780,-1008.36,0.00022465,2]
[342090759,1731429037790,-500.0,0.00022465,2]
[342090760,1731429037799,-500.0,0.00022465,2]
[342090761,1731429037812,-500.0,0.00022465,2]
[342090762,1731429037822,-500.0,0.00022465,2]
[342090763,1731429037831,-500.0,0.00022465,2]
[342090764,1731429037841,-506.94524371,0.00022465,2]
[342090765,1731429037852,-500.0,0.00022465,2]
[342090766,1731429037862,-728.99,0.00022465,2]
[342090767,1731429037871,-1211.92,0.00022465,2]
[342090768,1731429037881,-513.19267344,0.00022465,2]
[342090769,1731429037890,-500.0,0.00022465,2]
[342090770,1731429037899,-930.01,0.00022465,2]
[342090771,1731429037909,-500.0,0.00022465,2]
[342090772,1731429037918,-1697.53,0.00022465,2]
[342090773,1731429037928,-529.61040937,0.00022465,2]
[342090774,1731429037942,-619.86639726,0.00022465,2]
[342090775,1731429037951,-733.81,0.00022465,2]
[342090776,1731429037960,-2569.56,0.00022465,2]
[342090777,1731429037970,-1612.16,0.00022465,2]
[342090778,1731429037979,-500.0,0.00022465,2]
[342090779,1731429037987,-500.0,0.00022465,2]
[342090780,1731429037996,-500.0,0.00022465,2]
[342090781,1731429038005,-500.0,0.00022465,2]
[342090782,1731429038016,-743.43,0.00022465,2]
[342090783,1731429038025,-307.31130628,0.00022465,2]
[342090784,1731429038036,-500.0,0.00022465,2]
[342090785,1731429038045,-506.19480091,0.00022465,2]
[342090786,1731429038056,-500.0,0.00022465,2]
[342090787,1731429038065,-758.27,0.00022465,2]
[342090788,1731429038076,-500.0,0.00022465,2]
[342090789,1731429038085,-3191.38,0.00022465,2]
[342090790,1731429038095,-1021.95,0.00022465,2]
[342090791,1731429038104,-500.0,0.00022465,2]
[342090792,1731429038113,-3700.61,0.00022465,2]
[342090793,1731429038123,-500.0,0.00022465,2]
[342090794,1731429038132,-500.0,0.00022465,2]
[342090795,1731429038142,-500.0,0.00022465,2]
[342090796,1731429038151,-500.0,0.00022465,2]
[342090797,1731429038161,-711.18,0.00022465,2]
[342090798,1731429038171,-500.0,0.00022465,2]
[342090799,1731429038180,-596.61,0.00022465,2]
[342090800,1731429038193,-500.0,0.00022465,2]
[342090801,1731429038202,-272.223,0.00022521,2]
[342090802,1731429038212,-675.38966901,0.00022639,2]
[342090803,1731429038222,-8078.35158196,0.0002267,2]
[342090804,1731429038231,-1147.61711199,0.00022721,2]
[342090805,1731429038240,-500.0,0.00022721,2]
[342090806,1731429038250,-1000.0,0.00022721,2]
[342090807,1731429038260,-1259.12,0.00022737,2]
[342090808,1731429038269,-1259.12,0.00022737,2]
[342090809,1731429038278,-1259.12,0.00022737,2]
[342090810,1731429038287,-1259.12,0.00022737,2]
[342090811,1731429038297,-1259.23225319,0.00022737,2]
[342090812,1731429038307,-151.0,0.00022739,7]
[342090813,1731429038317,-151.0,0.00022739,7]
[342090814,1731429038327,-151.0,0.00022739,7]
[342090815,1731429038336,-151.0,0.00022739,7]
[342090816,1731429038346,-500.0,0.00022739,2]
[342090817,1731429038356,-500.0,0.00022739,2]
[342090818,1731429038365,-500.0,0.00022739,2]
[342090819,1731429038374,-500.0,0.00022739,2]
[342090820,1731429038383,-500.0,0.00022739,2]
[342090821,1731429038393,-500.0,0.00022739,2]
[342090822,1731429038403,-500.0,0.00022739,2]
[342090823,1731429038413,-500.0,0.00022739,2]
[342090824,1731429038423,-500.0,0.00022739,2]
[342090825,1731429038432,-500.0,0.00022739,2]
[342090826,1731429038445,-596.84,0.00022739,2]
[342090827,1731429038454,-500.0,0.00022739,2]
[342090828,1731429038464,-500.0,0.00022739,2]
[342090829,1731429038472,-500.0,0.00022739,2]
[342090830,1731429038482,-250.59797923,0.00022739,2]
[342090831,1731429038492,-500.0,0.00022739,2]
[342090832,1731429038506,-500.0,0.00022739,2]
[342090833,1731429038516,-500.0,0.00022739,2]
[342090834,1731429038526,-500.0,0.00022739,2]
[342090835,1731429038536,-500.0,0.00022739,2]
[342090836,1731429038547,-500.0,0.00022739,2]
[342090837,1731429038557,-9728.04,0.00022739,2]
[342090838,1731429038567,-2247.58,0.00022739,2]
[342090839,1731429038578,-500.0,0.00022739,2]
[342090840,1731429038588,-898.34,0.00022739,2]
[342090841,1731429038598,-500.0,0.00022739,2]
[342090842,1731429038608,-982.1,0.00022739,2]
[342090843,1731429038618,-500.0,0.00022739,2]
[342090844,1731429038628,-500.0,0.00022739,2]
[342090845,1731429038639,-1453.04,0.00022739,2]
[342090846,1731429038648,-500.0,0.00022739,2]
[342090847,1731429038658,-1008.36,0.00022739,2]
[342090848,1731429038668,-500.0,0.00022739,2]
[342090849,1731429038678,-500.0,0.00022739,2]
[342090850,1731429038691,-500.0,0.00022739,2]
[342090851,1731429038700,-500.0,0.00022739,2]
[342090852,1731429038710,-500.0,0.00022739,2]
[342090853,1731429038720,-728.99,0.00022739,2]
[342090854,1731429038729,-1211.92,0.00022739,2]
[342090855,1731429038739,-930.01,0.00022739,2]
[342090856,1731429038750,-500.0,0.00022739,2]
[342090857,1731429038759,-1697.53,0.00022739,2]
[342090858,1731429038769,-733.81,0.00022739,2]
[342090859,1731429038779,-2569.56,0.00022739,2]
[342090860,1731429038789,-1612.16,0.00022739,2]
[342090861,1731429038799,-500.0,0.00022739,2]
[342090862,1731429038809,-500.0,0.00022739,2]
[342090863,1731429038819,-500.0,0.00022739,2]
[342090864,1731429038829,-165.1555293,0.00022739,2]
[342090865,1731429038842,-743.43,0.00022739,2]
[342090866,1731429038852,-500.0,0.00022739,2]
[342090867,1731429038861,-758.27,0.00022739,2]
[342090868,1731429038871,-500.0,0.00022739,2]
[342090869,1731429038880,-3191.38,0.00022739,2]
[342090870,1731429038890,-1021.95,0.00022739,2]
[342090871,1731429038899,-500.0,0.00022739,2]
[342090872,1731429038908,-3700.61,0.00022739,2]
[342090873,1731429038918,-500.0,0.00022739,2]
[342090874,1731429038927,-500.0,0.00022739,2]
[342090875,1731429038940,-500.0,0.00022739,2]
[342090876,1731429038949,-500.0,0.00022739,2]
[342090877,1731429038958,-711.18,0.00022739,2]
[342090878,1731429038968,-500.0,0.00022739,2]
[342090879,1731429038977,-596.61,0.00022739,2]
[342090880,1731429038987,-500.0,0.00022739,2]
[342090881,1731429038997,-8078.35158196,0.00022742,2]
[342090882,1731429039007,-500.0,0.00022773,2]
[342090883,1731429039016,-500.0,0.00022773,2]
[342090884,1731429039026,-500.0,0.00022773,2]
[342090885,1731429039035,-150.0,0.000229,2]
[342090886,1731429039044,-151.0,0.00023013,7]
[342090887,1731429039053,-151.0,0.00023013,7]
[342090888,1731429039062,-151.0,0.00023013,7]
[342090889,1731429039072,-151.0,0.00023013,7]
[342090890,1731429039081,-500.0,0.00023013,2]
[342090891,1731429039091,-500.0,0.00023013,2]
[342090892,1731429039100,-500.0,0.00023013,2]
[342090894,1731429039109,-457.88125627,0.00023013,2]
[342090896,1731429039118,-474.0806372,0.00023013,2]
[342090897,1731429039128,-500.0,0.00023013,2]
[342090898,1731429039138,-500.0,0.00023013,2]
[342090899,1731429039148,-500.0,0.00023013,2]
[342090900,1731429039157,-500.0,0.00023013,2]
[342090901,1731429039168,-500.0,0.00023013,2]
[342090904,1731429039178,-596.84,0.00023013,2]
[342090906,1731429039191,-500.0,0.00023013,2]
[342090907,1731429039201,-337.8208152,0.00023013,2]
[342090918,1731429039412,-162.1791848,0.00023013,2]
[342090920,1731429039422,-193.8208152,0.00023013,2]
[342090930,1731429039734,-267.93061364,0.00021917,2]
[342090931,1731429039743,-195.55057324,0.0002209,2]
[342090932,1731429039752,-443.89221341,0.00022173,2]
[342090933,1731429039764,-56.10778659,0.00022173,2]
[342090934,1731429039774,-500.0,0.00022773,2]
[342090935,1731429039783,-306.1791848,0.00023013,2]
[342090936,1731429039793,-500.0,0.00023013,2]
[342090937,1731429039803,-453.61767093,0.00023013,2]
[342090938,1731429039812,-500.0,0.00023013,2]
[342090939,1731429039821,-500.0,0.00023013,2]
[342090940,1731429039831,-509.81110002,0.00023013,2]
[342090941,1731429039840,-203.8219064,0.00023013,2]
[342090942,1731429039849,-898.34,0.00023013,2]
[342090943,1731429039859,-982.1,0.00023013,2]
[342090944,1731429039869,-500.0,0.00023013,2]
[342090945,1731429039879,-500.0,0.00023013,2]
[342090946,1731429039889,-500.0,0.00023013,2]
[342090947,1731429039898,-1453.04,0.00023013,2]
[342090948,1731429039908,-500.0,0.00023013,2]
[342090949,1731429039918,-1008.36,0.00023013,2]
[342090950,1731429039928,-500.0,0.00023013,2]
[342090951,1731429039941,-500.0,0.00023013,2]
[342090952,1731429039950,-500.0,0.00023013,2]
[342090953,1731429039959,-500.0,0.00023013,2]
[342090954,1731429039968,-500.0,0.00023013,2]
[342090955,1731429039977,-728.99,0.00023013,2]
[342090956,1731429039986,-1211.92,0.00023013,2]
[342090957,1731429039996,-930.01,0.00023013,2]
[342090958,1731429040005,-500.0,0.00023013,2]
[342090959,1731429040015,-1697.53,0.00023013,2]
[342090960,1731429040024,-733.81,0.00023013,2]
[342090961,1731429040033,-2569.56,0.00023013,2]
[342090962,1731429040043,-1612.16,0.00023013,2]
[342090963,1731429040053,-500.0,0.00023013,2]
[342090964,1731429040062,-204.40449422,0.00023013,2]
[342090965,1731429040072,-500.0,0.00023013,2]
[342090966,1731429040081,-743.43,0.00023013,2]
[342090967,1731429040090,-500.0,0.00023013,2]